Cogmind - Beta 16 @@@ ROGUE MODE // 2025.11.25 @ 11:40:13 Player: omewwes Result: Self-destructed Performance ------------- Evolutions (2) 1000 Regions Visited (6) 1200 Robots Destroyed (37) 185 Value Destroyed (763) 763 Prototype IDs (26) 520 Alien Tech Used (0) 0 Bonus (500) 500 TOTAL SCORE: 4168 Bonus ------- Entered Garrisons 200 Aligned with FarCom 300 Cogmind --------- Core Integrity 88/550 Matter 280/300 Energy 44/100 System Corruption 0% Temperature Cool (0) Movement Core (150) Ox2 Location -8/Garrison Parts ------- > --- POWER (1) -------- (None) > --- PROPULSION (3) --- (None) > --- UTILITY (5) ------ Small Storage Unit Melee Analysis Suite Core Analyzer > --- WEAPON (2) ------- Arc Projector > --- INVENTORY (8) ---- Heat Sink Peak State ------------ > --- POWER ------------ Light Nuclear Core > --- PROPULSION ------- Improved Carbon-fiber Leg Improved Carbon-fiber Leg Flight Unit > --- UTILITY ---------- Small Storage Unit Melee Analysis Suite Core Analyzer Improved Medium Armor Plating > --- WEAPON ----------- Great Axe Longsword +1 > --- INVENTORY -------- Light Ion Engine Heat Sink [Rating: 36] Favorites ----------- Power Light Ion Engine Engine Light Ion Engine Power Core Light Nuclear Core Propulsion Light Treads Treads Light Treads Leg Improved Carbon-fiber Leg Flight Unit Flight Unit Utility Melee Analysis Suite Device Heat Sink Storage Medium Storage Unit Processor Melee Analysis Suite Hackware System Shield Protection Light Armor Plating Weapon Beam Cannon Energy Gun EM Pulse Gun Energy Cannon Beam Cannon Ballistic Gun Light Assault Rifle Ballistic Cannon Bore Cannon Slashing Weapon Longsword +1 Build | -11 -10 -10 -10 -9 -8 -8 ------- Run | Yrd Mat Min Exi Min Mat Gar Slots Evolved 4 | . . . . . 4 . Power . | . . . . . . . Propulsion 1 | . . . . . 1 . Utility 3 | . . . . . 3 . Weapon . | . . . . . . . Parts Attached 40 | 7 6 3 . 5 11 8 Power 7 | 1 1 1 . 1 2 1 Engine 6 | 1 1 1 . 1 2 . Core 1 | . . . . . . 1 Reactor . | . . . . . . . Propulsion 9 | 2 . 1 . 2 2 2 Treads 2 | 2 . . . . . . Leg 3 | . . 1 . . . 2 Wheel . | . . . . . . . Hover . | . . . . . . . Flight 4 | . . . . 2 2 . Utility 14 | 2 3 . . 2 6 1 Device 4 | 1 2 . . 1 . . Storage 3 | 1 1 . . . 1 . Processor 2 | . . . . . 1 1 Hackware 1 | . . . . . 1 . Protection 4 | . . . . 1 3 . Artifact . | . . . . . . . Weapon 10 | 2 2 1 . . 1 4 Energy Gun 3 | 1 . . . . . 2 Energy Cannon 2 | . 2 . . . . . Ballistic Gun 1 | 1 . . . . . . Ballistic Cannon 1 | . . 1 . . . . Launcher . | . . . . . . . Special Weapon . | . . . . . . . Impact Weapon . | . . . . . . . Slashing Weapon 3 | . . . . . 1 2 Piercing Weapon . | . . . . . . . Special Melee Weapon . | . . . . . . . Unidentified Prototypes . | . . . . . . . Parts Lost 15 | . . 2 . 3 2 8 Power 4 | . . . . 2 . 2 Propulsion 4 | . . 1 . . 1 2 Utility 5 | . . 1 . 1 1 2 Weapon 2 | . . . . . . 2 Highest Loss Streak 3 | . . 2 . 2 1 3 To Critical Strikes . | . . . . . . . Average Backups 3 | . 5 6 3 3 3 2 Power . | . . . . . . . Propulsion . | . . . . . . . Utility 2 | . 3 3 1 1 2 1 Weapon 1 | . 1 2 2 1 1 . Tool/Special . | . . . . . . . Unused Backups 3 | . . 2 1 . . . Power . | . . . . . . . Propulsion . | . . . . . . . Utility 2 | . . 1 1 . . . Weapon 1 | . . 1 . . . . Tool/Special . | . . . . . . . Average Slot Usage (%) 75 | . 99 77 47 67 73 74 Engine 10 | . 14 14 14 4 6 3 Treads 9 | . 28 19 . . . . Leg 5 | . . 2 14 6 . 10 Flight 6 | . . . . 14 25 10 Device 8 | . 14 9 12 18 4 . Storage 6 | . 14 10 . . . 6 Processor 4 | . . . . . 7 15 Hackware 1 | . . . . . 6 2 Protection 3 | . . . . 7 12 8 Energy Cannon 10 | . 23 17 6 14 . . Slashing Weapon 4 | . . . . . 8 12 Peak Build Rating 36 | 9 9 13 11 8 23 36 Average Rating 12 | 5 7 8 5 6 19 26 On Entrance 8 | . 9 9 3 8 6 21 Avg Prop Armor Cover (%) 2 | . . . . 3 . 2 Naked Turns . | . . . . . . . Heaviest Build 26 | 14 22 26 8 8 12 24 Greatest Support 40 | 40 40 40 10 10 12 36 Greatest Overweight (x) 5 | . . 1 . . . 5 Average Overweight (x) . | . . . . . . . Largest Inventory Capacity 10 | 8 10 10 5 5 8 8 Average Capacity 7 | 7 9 8 5 5 5 7 Most Carried 7 | 2 7 7 5 5 5 5 Average Carried 3 | . 5 5 3 4 3 2 Final Capacity 10 | 8 10 5 5 5 5 8 Final Carried 6 | 2 6 5 3 5 4 1 Class Distribution -------------------- 70% | Mutant 15% | Scavenger-Mutant 12% | Scavenger-Gladiator Dominant Class ---------------- Mutant | -10/Materials Mutant | -10/Mines Mutant | -10/Exiles Scavenger-Mutant | -9/Mines Scavenger-Mutant | -8/Materials Scavenger-Gladiator | -8/Garrison Resources | -11 -10 -10 -10 -9 -8 -8 ----------- Run | Yrd Mat Min Exi Min Mat Gar Matter Collected 805 | 289 154 62 . 75 145 80 Remotely . | . . . . . . . Salvage Created 1281 | 155 392 105 . 148 320 161 Parts 81 | 17 19 9 . 12 13 11 Haulers Intercepted 2 | . . . . . 2 . Recyclers Shooed 2 | 1 1 . . . . . Parts Field Recycled . | . . . . . . . Retrieved Matter . | . . . . . . . Parts Self-Destructed . | . . . . . . . Prevented . | . . . . . . . Parts Restored . | . . . . . . . Kills | -11 -10 -10 -10 -9 -8 -8 ------- Run | Yrd Mat Min Exi Min Mat Gar Combat Hostiles Destroyed 30 | . 7 8 . 5 4 6 Melee 9 | . . . . . 4 5 Guns 2 | . 1 . . . . 1 Cannons 19 | . 6 8 . 5 . . Classes Destroyed 11 | 3 2 1 . 1 2 2 Worker 2 | 2 . . . . . . Tunneler 2 | 2 . . . . . . Hauler 2 | . . . . . 2 . Recycler 3 | 1 2 . . . . . Swarmer 15 | . 3 6 . 3 . 3 Saboteur 1 | . . . . . . 1 Grunt 6 | . 4 . . . 1 1 Sentry 4 | . . . . 2 2 . Specialist 1 | . . . . . . 1 Hunter 1 | . . . . . 1 . Assembled 2 | . . 2 . . . . Best Kill Streak 5 | 2 5 3 . 3 3 3 Combat Bots Only 3 | . 3 3 . 3 1 3 Max Kills in Single Turn 1 | 1 1 1 . 1 1 1 Gunslinging . | . . . . . . . Exploded . | . . . . . . . Melee 1 | . . . . . 1 1 Uniques/NPCs Destroyed . | . . . . . . . Combat | -11 -10 -10 -10 -9 -8 -8 -------- Run | Yrd Mat Min Exi Min Mat Gar Hostile Shots Fired 196 | . 21 49 . 23 27 76 Missed 58 | . 10 18 . 8 9 13 Hits 138 | . 11 31 . 15 18 63 Melee 6 | . . 4 . . . 2 Projectile 132 | . 11 27 . 15 18 61 AOE 8 | . . 8 . . . . Critical Strikes 3 | . . 1 . 1 . 1 Damage Taken 2037 | 6 127 622 . 202 248 832 Core 669 | . 7 133 . 67 70 392 Absorbed by Shields 20 | . . . . . . 20 Core Remaining (%) 58 | 100 . . . 17 . . Volleys Fired 81 | 14 25 21 . 13 . 8 Largest 2 | 2 2 2 . 1 . 2 Hottest 120 | 60 120 120 . 60 . 110 Shots Fired 143 | 28 50 39 . 13 . 13 Gun 57 | 28 16 . . . . 13 Cannon 86 | . 34 39 . 13 . . Launcher . | . . . . . . . Special . | . . . . . . . Kinetic 28 | 14 8 6 . . . . Thermal 80 | . 34 33 . 13 . . Explosive . | . . . . . . . Electromagnetic 35 | 14 8 . . . . 13 Robot Hit Streak 16 | 6 10 4 . 16 . 3 Robot Miss Streak 5 | 5 2 3 . . . 1 Penetration Max . | . . . . . . . Secondary Targets . | . . . . . . . Shots Hit Robots 129 | 15 35 19 . 13 17 30 Core Hits 46 | 7 13 7 . 7 4 8 Critical Kills 1 | . . 1 . . . . Critical Parts Destroyed 1 | . 1 . . . . . Critical Strikes 9 | . 1 1 . . 6 1 Destroy 2 | . 1 1 . . . . Sever 7 | . . . . . 6 1 Melee Attacks 50 | . . . . . 21 29 Impact . | . . . . . . . Slashing 50 | . . . . . 21 29 Piercing . | . . . . . . . Sneak Attacks 3 | . . . . . 3 . Combat Hostiles 1 | . . . . . 1 . Follow-up Attacks 2 | . . . . . . 2 Damage Inflicted 3396 | 248 524 331 . 226 951 1116 Guns 418 | 201 124 . . . . 93 Cannons 957 | . 400 331 . 226 . . Explosions 47 | 47 . . . . . . Melee 1965 | . . . . . 951 1014 Ramming 9 | . . . . . . 9 Kinetic 124 | 67 45 12 . . . . Thermal 992 | 47 400 319 . 226 . . Explosive . | . . . . . . . Electromagnetic 306 | 134 79 . . . . 93 Impact . | . . . . . . . Slashing 1965 | . . . . . 951 1014 Piercing . | . . . . . . . Highest Corruption . | . . . . . . . Average Corruption . | . . . . . . . Corruption Purged . | . . . . . . . Corruption Blocked . | . . . . . . . Overload Shots . | . . . . . . . Overflow Damage 158 | . . 16 . . 78 64 Projectiles 16 | . . 16 . . . . Explosions . | . . . . . . . Melee 142 | . . . . . 78 64 Knockbacks . | . . . . . . . Impact . | . . . . . . . Kinetic . | . . . . . . . Secondary . | . . . . . . . Self-Inflicted Damage 9 | 7 . . . . . 2 Shots 1 | 1 . . . . . . Rammed 8 | . . . . . . 8 Targets Rammed 8 | . . . . . . 8 Kicked . | . . . . . . . Crushed . | . . . . . . . Highest Temperature 200 | 40 149 200 . 49 . 83 Average Temperature 52 | 17 47 80 . 34 . 44 Received Heat Transfer 580 | . 60 40 . 72 90 318 Siege Activations . | . . . . . . . Martial Activations . | . . . . . . . Shielding Activations . | . . . . . . . Robots Disrupted . | . . . . . . . Combat Hostiles . | . . . . . . . Robots Corrupted . | . . . . . . . Combat Hostiles . | . . . . . . . Parts Fried . | . . . . . . . Impact Corruptions . | . . . . . . . Robots Melted . | . . . . . . . Combat Hostiles . | . . . . . . . Parts Melted 2 | . 1 1 . . . . Heat Transferred 1998 | . 851 666 . 481 . . Parts Sabotaged 6 | . . . . . . 6 Parts Stolen . | . . . . . . . Parts Stripped . | . . . . . . . Power Chain Reactions 1 | 1 . . . . . . Alert | -11 -10 -10 -10 -9 -8 -8 ------- Run | Yrd Mat Min Exi Min Mat Gar Maximum Alert Level 1 | . . . . . . 1 Low Security (%) 99 | 100 100 100 . 100 100 97 Level 1 . | . . . . . . 2 Level 2 . | . . . . . . . Level 3 . | . . . . . . . Level 4 . | . . . . . . . Level 5 . | . . . . . . . High Security . | . . . . . . . Max Security . | . . . . . . . Peak Influence 202 | 10 126 146 . 70 91 202 Initial 52 | . . 21 . . 7 52 Average 58 | . 47 80 . 44 42 86 Influence Increases 928 | 25 241 156 . 110 186 210 Destroy 0b10 Robot/C 560 | . 140 120 . 100 80 120 Destroy 0b10 Robot/NC 45 | 25 10 . . . 10 . Destroy Leader 94 | . 30 20 . 10 34 . Successful Hack 27 | . . . . . 13 14 Disable Machine 30 | . 15 15 . . . . Destroy Structure 22 | . 1 1 . . 4 16 Partial Spotted 15 | . . . . . 15 . Lose Combat Pursuer 135 | . 45 . . . 30 60 Influence Decreases 746 | 25 186 194 17 90 125 109 Entered New Map 93 | . . 34 17 . 13 29 Time Decay 513 | 25 186 140 . 70 92 . Lost Part 140 | . . 20 . 20 20 80 Squads Dispatched 2 | . 2 . . . . . Investigation 1 | . 1 . . . . . Extermination . | . . . . . . . Reinforcement 1 | . 1 . . . . . Assault . | . . . . . . . Garrison . | . . . . . . . Intercept . | . . . . . . . Searches Triggered . | . . . . . . . Construction Impeded . | . . . . . . . Haulers Reinforced . | . . . . . . . Active Scanning Responses . | . . . . . . . Cargo Convoy Interrupts . | . . . . . . . Stealth | -11 -10 -10 -10 -9 -8 -8 --------- Run | Yrd Mat Min Exi Min Mat Gar Distress Signals 2 | . 2 . . . . . Communications Jammed . | . . . . . . . Distress Signals . | . . . . . . . Times Spotted 57 | . 14 15 . 5 10 13 Peak Tracking Total 14 | . 4 14 . 5 5 8 Tactical Retreats 9 | . 3 1 . . 1 4 Traps | -11 -10 -10 -10 -9 -8 -8 ------- Run | Yrd Mat Min Exi Min Mat Gar Traps Triggered 4 | . . . . . . 4 Indirectly . | . . . . . . . Trap Hack Attempts . | . . . . . . . Triggered . | . . . . . . . Disarmed . | . . . . . . . Reprogrammed . | . . . . . . . Reused . | . . . . . . . Traps Extracted . | . . . . . . . Installed . | . . . . . . . Triggered . | . . . . . . . Machines | -11 -10 -10 -10 -9 -8 -8 ---------- Run | Yrd Mat Min Exi Min Mat Gar Machines Disabled 2 | . 1 1 . . . . Max in Single Turn 1 | . 1 1 . . . . Machines Repaired . | . . . . . . . Machines Dismantled . | . . . . . . . Machines Sabotaged . | . . . . . . . Overloaded Fab Kills . | . . . . . . . Hacking | -11 -10 -10 -10 -9 -8 -8 --------- Run | Yrd Mat Min Exi Min Mat Gar Machines Accessed 13 | . 4 . 3 . 4 2 Terminals 8 | . 3 . . . 3 2 Fabricators . | . . . . . . . Repair Stations . | . . . . . . . Recycling Units 1 | . 1 . . . . . Scanalyzers . | . . . . . . . Garrison Access 1 | . . . . . 1 . Total Hacks 27 | . 11 . 3 . 11 2 Successful 11 | . 4 . 3 . 3 1 Failed 16 | . 7 . . . 8 1 Catastrophic 3 | . . . . . 3 . Database Lockouts . | . . . . . . . Manual 11 | . 2 . 1 . 8 . Terminals 21 | . 10 . . . 9 2 Fabricators . | . . . . . . . Repair Stations . | . . . . . . . Recycling Units 1 | . 1 . . . . . Scanalyzers . | . . . . . . . Garrison Access 2 | . . . . . 2 . Terminal Hacks 8 | . 4 . 3 . . 1 Record 2 | . . . 2 . . . Prototype ID Bank 2 | . 2 . . . . . Branch Access Points 1 | . 1 . . . . . Emergency Access Points 1 | . . . . . . 1 Locate Traps 1 | . 1 . . . . . Proto ID Catalog 1 | . . . 1 . . . Fabricator Hacks . | . . . . . . . Repair Station Hacks . | . . . . . . . Recycling Unit Hacks . | . . . . . . . Scanalyzer . | . . . . . . . Garrison Access Hacks 1 | . . . . . 1 . Unlock Access 1 | . . . . . 1 . Unauthorized Hacks 2 | . . . . . 2 . Terminals 2 | . . . . . 2 . Disrupt 1 | . . . . . 1 . Operators 1 | . . . . . 1 . Fabricators . | . . . . . . . Repair Stations . | . . . . . . . Recycling Units . | . . . . . . . Scanalyzers . | . . . . . . . Garrison Access . | . . . . . . . Data Cores Recovered . | . . . . . . . Used . | . . . . . . . Hacking Detections 7 | . 2 . . . 4 1 Full Trace Events . | . . . . . . . Feedback Events . | . . . . . . . Feedback Blocked . | . . . . . . . Robot Schematics Acquired . | . . . . . . . Robots Built . | . . . . . . . Authchips . | . . . . . . . Time . | . . . . . . . Total Robot Build Rating . | . . . . . . . Part Schematics Acquired . | . . . . . . . Parts Built . | . . . . . . . Authchips . | . . . . . . . Time . | . . . . . . . Total Part Build Rating . | . . . . . . . Part Studies Acquired . | . . . . . . . Parts Repaired . | . . . . . . . Time . | . . . . . . . Parts Recycled . | . . . . . . . Recycled Matter . | . . . . . . . Retrieved Matter . | . . . . . . . Retrieved Components . | . . . . . . . Parts Scanalyzed . | . . . . . . . Part Schematics Acquired . | . . . . . . . Parts Damaged . | . . . . . . . Bothacking | -11 -10 -10 -10 -9 -8 -8 ------------ Run | Yrd Mat Min Exi Min Mat Gar Used RIF Installer . | . . . . . . . Robots Hacked . | . . . . . . . Non-combat . | . . . . . . . Combat . | . . . . . . . Robot Hacks Applied . | . . . . . . . Relay Couplers Released . | . . . . . . . Fabnet Peak Effective % . | . . . . . . . Robots Rewired . | . . . . . . . Allies Hacked . | . . . . . . . Hacks Repelled . | . . . . . . . Allies | -11 -10 -10 -10 -9 -8 -8 -------- Run | Yrd Mat Min Exi Min Mat Gar Total Allies . | . . . . . . . Largest Group . | . . . . . . . Highest-Rated Group . | . . . . . . . Highest-Rated Ally . | . . . . . . . Total Orders . | . . . . . . . Ally Attacks . | . . . . . . . Total Damage . | . . . . . . . Kills . | . . . . . . . Allies Corrupted . | . . . . . . . Allies Melted . | . . . . . . . Intel | -11 -10 -10 -10 -9 -8 -8 ------- Run | Yrd Mat Min Exi Min Mat Gar Active Infowar (turns) 310 | 23 61 . 186 40 . . Terrain 310 | 23 61 . 186 40 . . Robot Analysis Total . | . . . . . . . Derelict Logs Recovered 2 | . . 1 . 1 . . Drone Launches . | . . . . . . . Drone Recoveries . | . . . . . . . Exploration | -11 -10 -10 -10 -9 -8 -8 ------------- Run | Yrd Mat Min Exi Min Mat Gar Turns Passed 2315 | 176 530 297 406 146 248 512 Spaces Moved 1836 | 81 263 190 333 205 353 411 Core 84 | 4 . 55 . . . 25 Treads 433 | 77 263 93 . . . . Legs 605 | . . 42 333 15 . 215 Wheels . | . . . . . . . Hover . | . . . . . . . Flight 714 | . . . . 190 353 171 Fastest Speed 34 | 50 160 50 120 37 34 34 Average Speed 94 | 154 160 120 120 43 34 87 Slowest Speed 300 | 160 160 240 120 120 37 300 Overloaded Moves . | . . . . . . . Propulsion Burnouts . | . . . . . . . Robots Hopped 11 | . . . . 2 9 . Potential Cave-ins . | . . . . . . . Cave-ins Triggered . | . . . . . . . Exploration Rate (%) 40 | 7 51 27 62 50 33 52 Regions Visited 6 Branch Regions 3 Pre-discovered Areas 2 | . . 1 1 . . . Known Exits Taken 2 | . 1 . . . 1 . Unknown Exits Taken 4 | 1 . 1 1 1 . . Scrap Searched 2 | . . 1 . 1 . . Spaces Dug 5 | . . . . . 4 1 Terrain Destroyed 17 | 5 . 7 . . 4 1 Melee 5 | . . . . . 4 1 Projectile 7 | . . 7 . . . . AOE 5 | 5 . . . . . . Terrain Rammed . | . . . . . . . Walls Destroyed . | . . . . . . . Machines Disabled . | . . . . . . . Actions | -11 -10 -10 -10 -9 -8 -8 --------- Run | Yrd Mat Min Exi Min Mat Gar Total 2203 | 103 324 221 339 246 447 523 Wait 114 | . 22 1 . 19 57 15 Move 1813 | 80 262 189 332 200 339 411 Hop 7 | . . . . 2 5 . Pick Up 12 | 2 2 1 2 3 2 . Fast Attach 27 | 7 3 1 . 4 6 6 Attach 14 | . . . 3 . 6 5 Detach 12 | . 3 2 . 1 4 2 Swap 11 | . 3 2 1 1 3 1 Drop 17 | . 4 4 1 3 4 1 Fire 81 | 14 25 21 . 13 . 8 Melee 45 | . . . . . 21 24 Ram 8 | . . . . . . 8 Kick . | . . . . . . . Crush . | . . . . . . . Escape Stasis 42 | . . . . . . 42 Rewire . | . . . . . . . Trap . | . . . . . . . Miscellaneous . | . . . . . . . Route ------- -11/Scrapyard -10/Materials (discovered 2 exits: [*Mat] / *Min) -10/Mines (discovered 2 exits: [*Mat] / *Exi) -10/Exiles -9/Mines -8/Materials (discovered 2 exits: [*Fac] / Gar) -8/Garrison (discovered 2 exits: [*Mat x2]) History --------- Turn | Location | Event 38 | -11/Scrapyard | Discovered new exit (range 15) 177 | -11/Scrapyard | Entered Materials 306 | -10/Materials | Build established: Mutant 482 | -10/Materials | Discovered new exit (range 8) 593 | -10/Materials | Identified exit to Mines 707 | -10/Materials | Entered Mines 756 | -10/Mines | Met a Derelict bent on vengeance 766 | -10/Mines | Discovered new exit (range 12) 794 | -10/Mines | Learned location of Storage (-7) 839 | -10/Mines | A weapon hastily lodged in a ceiling crevice suddenly fell to the ground 852 | -10/Mines | Assembled infested the area 908 | -10/Mines | Core integrity fell below 50% 997 | -10/Mines | Deemed a non-threat by the Exiles lab entrance 997 | -10/Mines | Discovered new exit (range 5) 1004 | -10/Mines | Entered Exiles 1037 | -10/Exiles | Met 8R-AWN 1054 | -10/Exiles | Met EX-HEX 1091 | -10/Exiles | Met EX-BIN 1103 | -10/Exiles | Aligned with FarCom system 1104 | -10/Exiles | Given EX-Vault access code 1139 | -10/Exiles | Opened EX-Vault 1145 | -10/Exiles | Found Longsword +1 1194 | -10/Exiles | Warned to stay clear of 0b10 Research branches 1242 | -10/Exiles | Met EX-DEC 1314 | -10/Exiles | Discovered new exit (range 10) 1365 | -10/Exiles | Learned location of Zion (-7) 1410 | -10/Exiles | Left Exiles lab with Longsword +1 1410 | -10/Exiles | Entered Mines 1465 | -9/Mines | Core integrity fell below 20% 1509 | -9/Mines | Joined a pair of Derelicts in attacking an 0b10 outpost 1552 | -9/Mines | Discovered new exit (range 9) 1556 | -9/Mines | Entered Materials 1556 | -8/Materials | Evolved 4 slots: Propulsion x1, Utility x3 1643 | -8/Materials | Discovered new exit (range 16) 1769 | -8/Materials | Build established: Scavenger-Mutant 1804 | -8/Materials | Identified exit to Garrison 1804 | -8/Materials | Entered Garrison 1876 | -8/Garrison | Discovered new exit (range 15) 1894 | -8/Garrison | Triggered checkpoint 1958 | -8/Garrison | Lost 3 parts (1n2u) 2042 | -8/Garrison | Triggered checkpoint 2178 | -8/Garrison | Discovered new exit (range 10) 2202 | -8/Garrison | Triggered checkpoint 2233 | -8/Garrison | Core integrity fell below 50% 2298 | -8/Garrison | Core integrity fell below 20% 2316 | -8/Garrison | Self-destructed Last Messages --------------- 02230_ Great Axe blown off. 02230_ Great Axe crushed and broken. 02230_ Longsword +1 blown off. 02230_ Longsword +1 crushed and broken. 02230_ E-15 Imp destroyed. 02234_ Lgt. Nuclear Core destroyed. 02235_ Slammed into G-47 Trooper. 02237_ Acquired 24 matter. 02237_ Slammed into G-47 Trooper. 02237_ Destabilizing: System interference. 02237_ Melee Analysis Suite temporarily disabled. 02238_ Slammed into G-47 Trooper. 02243_ Acquired Segregator. 02244_ Acquired 10 matter. 02270_ Segregator destroyed. 02274_ Acquired Arc Projector. 02286_ S-10 Pest destroyed. 02311_ Lgt. Ion Engine destroyed. 02313_ Arc Projector destroyed. 02313_ Critical hit (Burn: +37). Map ----- +----------------------------------------------------+ | ????# ##########??????#[=[#? | | ????# #???????????????##%##? | | ????# #????????????????#!#?? | | ????# ##################%#?? | | ????# "%*! #?? | | ????# ####%#?? | | ????+ #### #### #??#=#?? | | ????# #??#???????# #??#%##? | | ????# #????+?????# "?# #? | | ????# #??????????# "## #? | | ????# #??????????# "## #? | | ????# #??????????# #"## ##? | | ????# +??????????# #### #?? | | ????# #??????????# #??# #?? | | ????# #??????????# #??# ##? | | ????# #??????????# ??# #? | | ????# #??????????# ??# #? | | ????# #????+?????# ??# #? | | ##### #??????C???? g#??# ##? | | ####""""#### ???# #?? | | #### #?? | | + #?? | | #+##################??#### #?? | | ??#??????????????????????#*#?? | | ? #?????????????????????##g##? | | # ####??????????????????#@=[#? | | #??????????????????# [#? | | #??????????????????#[[[#? | | " #??????????????????#####? | | """ ""???????????????????????? | | " "#??????????????????????? | | "#??????????????????????? | | " "#??????????????????????? | | #"""""#??????????????????????? | | ?######??????????????????????? | | ?????????????????????????????? | | ?????????????????????????????? | | ?????????????????????????????? | | ?????????????????????????????? | | ?????????????????????????????? | | ?????????????????????????????? | | ?????????????????????????????? | | ?????????????????????????????? | | ?????????????????????????????? | | ?????????????????????????????? | | ?????????????????????????????? | | ?????????????????????????????? | | ?????????????????????????????? | | ?????????????????????????????? | | ########?????????????????????? | +----------------------------------------------------+ Best States ------------- Heat Dissipation 41 Energy Generation 14 Energy Capacity 250 Matter Stores 300 Matter Capacity 300 Sight Range 16 Terrain Scan Range 16 Terrain Scan Density 10 Armor Coverage 300 Evasion (%) 63 Melee Accuracy 5 Core Analysis 6 Recoil Reduction 2 Defensive Hacking 10 Item Schematics ----------------- None Robot Schematics ------------------ None Fabricated ------------ Nothing Repaired ---------- Nothing Studied --------- None Alien Tech Used ----------------- None Achievements -------------- None Challenges ------------ None Game ------ Seed VampiricHelicalWings Manual? 0 Play Time 00:23:46 Cumulative 119.1 hours Start 2025.11.25 @ 11:12:07 End 2025.11.25 @ 11:40:13 Sessions 1 Manual Loads 0 Difficulty Rogue Special Mode None Game No. 100 Rogue 100 Adventurer 0 Explorer 0 Win Type - Total 1 Types 1/0/0/0/0/0/0/0/0/0 Lore% 60 Gallery% 63 Achievement% 49 Wizard Run 0 Options --------- Layout 0 ASCII 0 Keyboard 1 Movement Vi Keybinds 0 Fullscreen 1 Font 18/SmallcapsGlow Map View 76x50 Zoom Use 0% Tactical HUD 1 Map Filters NONE Filters NONE Steam 1 RUN: 82850c52-0c24-469b-bf9b-5747b3be12c9